[Event "WYCC 2018 G16"]
[Site "Halkidiki"]
[Date "2018.10.27"]
[Round "8"]
[White "Zhang, Xiao"]
[Black "Makhija, Aashna"]
[Result "0-1"]
[ECO "D37"]
[WhiteElo "1980"]
[BlackElo "2197"]
[Annotator "NA"]
[PlyCount "100"]
[EventDate "2018.10.20"]
[EventType "swiss"]
[EventCountry "GRE"]
[SourceTitle "playchess.com"]
[Source "ChessBase"]
[SourceQuality "1"]
[TimeControl "40/5400+30:1800+30"]

1. d4 {[%emt 0:00:00]} Nf6 {[%emt 0:00:00]} 2. c4 {[%emt 0:00:00]} e6 {[%emt 0:00:00]} 3. Nf3 {[%emt 0:00:00]} d5 {[%emt 0:00:00]} 4. Nc3 {[%emt 0:00:00]} Be7 {[%emt 0:00:05]} 5. Bf4 {[%emt 0:00:01]} O-O {[%emt 0:00:26]} 6. e3 {[%emt 0:00:04]} b6 {[%emt 0:00:20]} 7. cxd5 {[%emt 0:00:50]} Nxd5 {[%emt 0:00:33]} 8. Bg3 {[%emt 0:03:03]} Bb7 {[%emt 0:07:08]} 9. Be2 {[%emt 0:03:10]} c5 {[%emt 0:02:32]} 10. O-O {[%emt 0:04:52]} Nd7 {[%emt 0:02:30]} 11. Rc1 {[%emt 0:02:15]} N7f6 {[%emt 0:07:41]} 12. Ne5 {[%emt 0:07:15]} cxd4 {[%emt 0:06:46]} 13. exd4 {[%emt 0:02:07]} Rc8 {[%emt 0:03:29]} 14. Qa4 {[%emt 0:04:07]} a6 {[%emt 0:07:16]} 15. Nxd5 {[%emt 0:07:30]} Nxd5 {[%emt 0:03:07]} 16. Bf3 {[%emt 0:02:08]} Bg5 {[%emt 0:11:07]} 17. Rce1 {[%emt 0:06:02]} Re8 {[%emt 0:24:24]} 18. Qb3 {[%emt 0:04:33]} Re7 {[%emt 0:04:46]} 19. Nc4 {[%emt 0:02:39]} Rd7 {[%emt 0:03:11]} 20. Ne5 {[%emt 0:09:53]} Re7 {[%emt 0:03:21]} 21. h4 {[%emt 0:09:39]} Bf4 {[%emt 0:04:18]} 22. Be4 {[%emt 0:01:35]} Bxg3 {[%emt 0:01:35]} 23. Qxg3 {[%emt 0:03:44]} Nf6 {[%emt 0:00:46]} 24. Bxb7 {[%emt 0:02:22]} Rxb7 {[%emt 0:00:07]} 25. Qd3 {[%emt 0:01:53]} b5 {[%emt 0:04:11]} 26. g4 {[%emt 0:06:26]} Nd5 {[%emt 0:02:03]} 27. g5 {[%emt 0:00:48]} Rbc7 {[%emt 0:01:04]} 28. a3 {[%emt 0:03:16]} Rc2 {[%emt 0:00:36]} 29. Qe4 {[%emt 0:01:20]} Qe7 {[%emt 0:00:30]} 30. Nd3 {[%emt 0:01:34]} Nb6 {[%emt 0:00:27]} 31. b3 {[%emt 0:05:10]} R2c3 {[%emt 0:00:37]} 32. Nc5 {[%emt 0:01:18]} Qd6 {[%emt 0:00:20]} 33. Re3 {[%emt 0:02:54]} Rxe3 {[%emt 0:00:12]} 34. Qxe3 {[%emt 0:00:45]} Nd5 {[%emt 0:00:20]} 35. Qe4 {[%emt 0:00:30]} Ne7 {[%emt 0:01:03]} 36. b4 {[%emt 0:00:43]} Nf5 {[%emt 0:00:31]} 37. Rd1 {[%emt 0:00:11]} Ne7 {[%emt 0:00:31]} 38. Qb7 {[%emt 0:02:20]} Qf4 {[%emt 0:00:27]} 39. Rd3 {[%emt 0:00:08]} Re8 {[%emt 0:00:33]} 40. Qd7 {[%emt 0:00:00]} Kf8 {[%emt 0:00:00]} 41. Nxa6 {[%emt 0:03:35]} Qxh4 {[%emt 0:16:11]} 42. Qxb5 {[%emt 0:02:40]} Nf5 {[%emt 0:05:58]} 43. Qc5+ {[%emt 0:01:37]} Kg8 {[%emt 0:00:41]} 44. Qc6 {[%emt 0:03:37]} Qxg5+ {[%emt 0:01:30]} 45. Kf1 {[%emt 0:00:06]} Rd8 {[%emt 0:01:09]} 46. b5 {[%emt 0:00:35]} Qh4 {[%emt 0:03:15]} 47. b6 {[%emt 0:02:16]} Nxd4 {[%emt 0:00:46]} 48. Qg2 {[%emt 0:00:23]} Qf4 {[%emt 0:00:58]} 49. Rd1 {[%emt 0:00:22]} Qe5 {[%emt 0:01:08]} 50. Kg1 {[%emt 0:00:52]} Ne2+ {[%emt 0:00:11] Ra1} 0-1

[Event "WYCC 2018 G16"]
[Site "Halkidiki"]
[Date "2018.10.27"]
[Round "8"]
[White "Aciu, Malina-Andreea"]
[Black "Peycheva, Gergana"]
[Result "1-0"]
[ECO "B41"]
[WhiteElo "1976"]
[BlackElo "2152"]
[Annotator "NA"]
[PlyCount "75"]
[EventDate "2018.10.20"]
[EventType "swiss"]
[EventCountry "GRE"]
[SourceTitle "playchess.com"]
[Source "ChessBase"]
[SourceQuality "1"]
[TimeControl "40/5400+30:1800+30"]

1. e4 {[%emt 0:00:00]} c5 {[%emt 0:00:00]} 2. Nf3 {[%emt 0:00:00]} e6 {[%emt 0:00:00]} 3. d4 {[%emt 0:00:00]} cxd4 {[%emt 0:00:15]} 4. Nxd4 {[%emt 0:00:00]} a6 {[%emt 0:00:40]} 5. c4 {[%emt 0:00:00]} Nf6 {[%emt 0:00:49]} 6. Nc3 {[%emt 0:00:00]} Bb4 {[%emt 0:00:54]} 7. Bd3 {[%emt 0:00:00]} Qc7 {[%emt 0:01:22]} 8. Nc2 {[%emt 0:03:09]} Bxc3+ {[%emt 0:04:57]} 9. bxc3 {[%emt 0:00:06]} Qe5 {[%emt 0:03:15]} 10. O-O {[%emt 0:08:15]} Qxc3 {[%emt 0:06:18]} 11. f4 {[%emt 0:13:43]} b5 {[%emt 0:09:24]} 12. cxb5 {[%emt 0:03:27]} axb5 {[%emt 0:00:15]} 13. Be3 {[%emt 0:04:11]} Nc6 {[%emt 0:08:43]} 14. Qe2 {[%emt 0:10:58]} Qa5 {[%emt 0:12:05]} 15. Bc5 {[%emt 0:07:22]} Ba6 {[%emt 0:05:49]} 16. Bd6 {[%emt 0:04:03]} Qb6+ {[%emt 0:08:13]} 17. Kh1 {[%emt 0:00:45]} Na5 {[%emt 0:00:21]} 18. e5 {[%emt 0:04:17]} Nd5 {[%emt 0:02:07]} 19. Qg4 {[%emt 0:03:58]} g6 {[%emt 0:00:50]} 20. Nb4 {[%emt 0:07:11]} Nxb4 {[%emt 0:02:54]} 21. Bxb4 {[%emt 0:00:04]} Nc6 {[%emt 0:01:55]} 22. Bd6 {[%emt 0:02:35]} Qd8 {[%emt 0:04:21]} 23. f5 {[%emt 0:05:13]} exf5 {[%emt 0:03:16]} 24. Bxf5 {[%emt 0:00:34]} Ne7 {[%emt 0:01:40]} 25. Be4 {[%emt 0:02:03]} Rc8 {[%emt 0:01:32]} 26. Qg5 {[%emt 0:01:35]} Rf8 {[%emt 0:04:23]} 27. Qh6 {[%emt 0:06:18]} b4 {[%emt 0:02:02]} 28. Rfe1 {[%emt 0:01:40]} Bc4 {[%emt 0:00:44]} 29. Bxb4 {[%emt 0:00:31]} Be6 {[%emt 0:00:47]} 30. Qxh7 {[%emt 0:01:51]} Rc4 {[%emt 0:01:25]} 31. a3 {[%emt 0:00:37]} Qb8 {[%emt 0:03:05]} 32. Bd6 {[%emt 0:01:30]} Qb2 {[%emt 0:00:33]} 33. Bf3 {[%emt 0:05:23]} Nf5 {[%emt 0:04:02]} 34. Rab1 {[%emt 0:01:24]} Qc3 {[%emt 0:01:09]} 35. Rb8+ {[%emt 0:00:52]} Rc8 {[%emt 0:00:04]} 36. Rxc8+ {[%emt 0:00:53]} Qxc8 {[%emt 0:00:04]} 37. Bxf8 {[%emt 0:00:11]} Qc3 {[%emt 0:00:18]} 38. Bb4 {[%emt 0:00:09]} 1-0

[Event "WYCC 2018 G16"]
[Site "Halkidiki"]
[Date "2018.10.27"]
[Round "8"]
[White "Sanskriti Goyal"]
[Black "Getman, Tatyana"]
[Result "1-0"]
[ECO "E46"]
[WhiteElo "1971"]
[BlackElo "2195"]
[Annotator "NA"]
[PlyCount "91"]
[EventDate "2018.10.20"]
[EventType "swiss"]
[EventCountry "GRE"]
[SourceTitle "playchess.com"]
[Source "ChessBase"]
[SourceQuality "1"]
[TimeControl "40/5400+30:1800+30"]

1. d4 {[%emt 0:00:00]} Nf6 {[%emt 0:00:00]} 2. c4 {[%emt 0:00:00]} e6 {[%emt 0:00:00]} 3. Nc3 {[%emt 0:00:00]} Bb4 {[%emt 0:00:00]} 4. e3 {[%emt 0:01:07]} O-O {[%emt 0:00:00]} 5. Nge2 {[%emt 0:00:15]} Re8 {[%emt 0:00:04]} 6. a3 {[%emt 0:00:46]} Bf8 {[%emt 0:00:06]} 7. d5 {[%emt 0:03:13]} a5 {[%emt 0:00:09]} 8. g3 {[%emt 0:04:58]} Na6 {[%emt 0:00:31]} 9. Bg2 {[%emt 0:03:39]} Nc5 {[%emt 0:00:16]} 10. O-O {[%emt 0:02:36]} a4 {[%emt 0:01:15]} 11. Qc2 {[%emt 0:10:00]} exd5 {[%emt 0:02:49]} 12. cxd5 {[%emt 0:00:24]} d6 {[%emt 0:00:29]} 13. e4 {[%emt 0:11:28]} Nb3 {[%emt 0:14:45]} 14. Rb1 {[%emt 0:02:59]} Bd7 {[%emt 0:00:42]} 15. Re1 {[%emt 0:06:19]} g6 {[%emt 0:01:41]} 16. Be3 {[%emt 0:02:56]} Ng4 {[%emt 0:04:54]} 17. Bd4 {[%emt 0:03:59]} Nxd4 {[%emt 0:10:48]} 18. Nxd4 {[%emt 0:00:04]} Bg7 {[%emt 0:00:12]} 19. Rbd1 {[%emt 0:03:38]} Ra5 {[%emt 0:09:22]} 20. h3 {[%emt 0:06:00]} Nh6 {[%emt 0:08:45]} 21. Qd2 {[%emt 0:07:54]} Rc5 {[%emt 0:04:27]} 22. f4 {[%emt 0:02:36]} Rc4 {[%emt 0:04:42]} 23. Nf3 {[%emt 0:03:46]} b5 {[%emt 0:08:51]} 24. g4 {[%emt 0:06:39]} Kh8 {[%emt 0:06:45]} 25. e5 {[%emt 0:03:00]} Qb8 {[%emt 0:01:58]} 26. Bf1 {[%emt 0:01:53]} Qc8 {[%emt 0:06:12]} 27. Bxc4 {[%emt 0:01:04]} bxc4 {[%emt 0:00:01]} 28. exd6 {[%emt 0:03:21]} cxd6 {[%emt 0:00:40]} 29. Rxe8+ {[%emt 0:00:03]} Bxe8 {[%emt 0:00:42]} 30. Re1 {[%emt 0:01:04]} Bd7 {[%emt 0:00:21]} 31. Qe3 {[%emt 0:00:50]} Qb7 {[%emt 0:03:37]} 32. Re2 {[%emt 0:00:39]} Kg8 {[%emt 0:01:30]} 33. Nd4 {[%emt 0:01:50]} Qb6 {[%emt 0:03:19]} 34. Nc6 {[%emt 0:01:31]} Qb7 {[%emt 0:00:28]} 35. Kf1 {[%emt 0:03:19]} Kh8 {[%emt 0:03:15]} 36. Qe7 {[%emt 0:01:36]} Ng8 {[%emt 0:01:23]} 37. Qxd6 {[%emt 0:00:22]} h5 {[%emt 0:01:03]} 38. Nd8 {[%emt 0:00:43]} Qa7 {[%emt 0:01:43]} 39. Nxf7+ {[%emt 0:00:12]} Kh7 {[%emt 0:00:01]} 40. Ng5+ {[%emt 0:00:00]} Kh6 {[%emt 0:00:00]} 41. Nf7+ {[%emt 0:02:38]} Kh7 {[%emt 0:00:50]} 42. Ne4 {[%emt 0:00:41]} Nh6 {[%emt 0:02:36]} 43. Neg5+ {[%emt 0:02:46]} Kg8 {[%emt 0:00:03]} 44. Nxh6+ {[%emt 0:00:09]} Bxh6 {[%emt 0:00:40]} 45. Qxg6+ {[%emt 0:00:13]} Bg7 {[%emt 0:00:04]} 46. Qf7+ {[%emt 0:00:10]} 1-0

[Event "WYCC 2018 G16"]
[Site "Halkidiki"]
[Date "2018.10.27"]
[Round "8"]
[White "Ros Alonso, Joana"]
[Black "Kalyva, Kyriaki"]
[Result "0-1"]
[ECO "B26"]
[WhiteElo "1952"]
[BlackElo "1779"]
[Annotator "NA"]
[PlyCount "76"]
[EventDate "2018.10.20"]
[EventType "swiss"]
[EventCountry "GRE"]
[SourceTitle "playchess.com"]
[Source "ChessBase"]
[SourceQuality "1"]
[TimeControl "40/5400+30:1800+30"]

1. e4 {[%emt 0:00:00]} c5 {[%emt 0:00:00]} 2. Nc3 {[%emt 0:00:00]} Nc6 {[%emt 0:00:00]} 3. g3 {[%emt 0:00:00]} g6 {[%emt 0:00:00]} 4. Bg2 {[%emt 0:00:00]} Bg7 {[%emt 0:00:00]} 5. d3 {[%emt 0:00:05]} d6 {[%emt 0:00:00]} 6. Be3 {[%emt 0:00:09]} Nd4 {[%emt 0:00:01]} 7. Qd2 {[%emt 0:00:13]} Qa5 {[%emt 0:00:06]} 8. Nf3 {[%emt 0:05:54]} Nxf3+ {[%emt 0:04:38]} 9. Bxf3 {[%emt 0:00:08]} Rb8 {[%emt 0:00:46]} 10. g4 {[%emt 0:08:07]} b5 {[%emt 0:04:15]} 11. h4 {[%emt 0:03:59]} b4 {[%emt 0:01:58]} 12. Nd1 {[%emt 0:00:47]} Nf6 {[%emt 0:04:47]} 13. g5 {[%emt 0:17:40]} Nd7 {[%emt 0:01:19]} 14. Be2 {[%emt 0:04:43]} Bb7 {[%emt 0:12:13]} 15. h5 {[%emt 0:07:13]} c4 {[%emt 0:08:15]} 16. h6 {[%emt 0:06:02]} c3 {[%emt 0:00:59]} 17. bxc3 {[%emt 0:03:27]} Bxc3 {[%emt 0:00:21]} 18. Nxc3 {[%emt 0:00:06]} bxc3 {[%emt 0:00:04]} 19. Qc1 {[%emt 0:00:46]} d5 {[%emt 0:03:12]} 20. exd5 {[%emt 0:11:02]} Bxd5 {[%emt 0:00:13]} 21. Rh4 {[%emt 0:01:41]} O-O {[%emt 0:04:42]} 22. a4 {[%emt 0:09:07]} Rb2 {[%emt 0:06:04]} 23. d4 {[%emt 0:01:45]} Qb4 {[%emt 0:03:04]} 24. Bf4 {[%emt 0:06:00]} e5 {[%emt 0:13:14]} 25. dxe5 {[%emt 0:00:41]} Nxe5 {[%emt 0:00:52]} 26. Bg3 {[%emt 0:00:25]} Nc4 {[%emt 0:00:29]} 27. Qd1 {[%emt 0:04:51]} Qb7 {[%emt 0:18:14]} 28. Rc1 {[%emt 0:08:20]} Nd2 {[%emt 0:01:02]} 29. Be5 {[%emt 0:00:22]} Re8 {[%emt 0:02:40]} 30. f4 {[%emt 0:00:16]} Qb4 {[%emt 0:02:15]} 31. Rh3 {[%emt 0:00:45]} Bc4 {[%emt 0:02:51]} 32. Bxc3 {[%emt 0:00:40]} Qc5 {[%emt 0:04:24]} 33. Rg3 {[%emt 0:00:38]} Ne4 {[%emt 0:01:15]} 34. Bd4 {[%emt 0:00:21]} Qa5+ {[%emt 0:00:12]} 35. Kf1 {[%emt 0:00:35]} Nxg3+ {[%emt 0:00:09]} 36. Kg2 {[%emt 0:00:30]} Nxe2 {[%emt 0:00:31]} 37. Bxb2 {[%emt 0:00:17]} Nxf4+ {[%emt 0:00:25]} 38. Kh2 {[%emt 0:00:24]} Qxg5 {[%emt 0:00:22]} 0-1

[Event "WYCC 2018 G16"]
[Site "Halkidiki"]
[Date "2018.10.27"]
[Round "8"]
[White "De Silva, Tenara"]
[Black "Duson, Robin"]
[Result "1-0"]
[ECO "B48"]
[WhiteElo "1927"]
[BlackElo "1999"]
[Annotator "NA"]
[PlyCount "115"]
[EventDate "2018.10.20"]
[EventType "swiss"]
[EventCountry "GRE"]
[SourceTitle "playchess.com"]
[Source "ChessBase"]
[SourceQuality "1"]
[TimeControl "40/5400+30:1800+30"]

1. e4 {[%emt 0:00:00]} c5 {[%emt 0:00:00]} 2. Nf3 {[%emt 0:00:00]} e6 {[%emt 0:00:00]} 3. d4 {[%emt 0:00:00]} cxd4 {[%emt 0:00:00]} 4. Nxd4 {[%emt 0:00:00]} Nc6 {[%emt 0:00:06]} 5. Nc3 {[%emt 0:00:10]} Qc7 {[%emt 0:00:13]} 6. Be3 {[%emt 0:00:09]} a6 {[%emt 0:00:13]} 7. a3 {[%emt 0:02:27]} Nf6 {[%emt 0:01:43]} 8. f4 {[%emt 0:02:49]} h5 {[%emt 0:07:27]} 9. h3 {[%emt 0:04:28]} h4 {[%emt 0:02:38]} 10. Qf3 {[%emt 0:03:33]} Nh5 {[%emt 0:04:12]} 11. Nxc6 {[%emt 0:15:04]} bxc6 {[%emt 0:02:29]} 12. Bd3 {[%emt 0:04:53]} Rb8 {[%emt 0:03:04]} 13. Rb1 {[%emt 0:02:39]} Ng3 {[%emt 0:03:13]} 14. Rg1 {[%emt 0:01:40]} d5 {[%emt 0:02:02]} 15. Bf2 {[%emt 0:04:12]} Qa5 {[%emt 0:15:11]} 16. Kd1 {[%emt 0:06:49]} Bd7 {[%emt 0:12:24]} 17. Bxg3 {[%emt 0:02:04]} hxg3 {[%emt 0:00:06]} 18. Ke2 {[%emt 0:04:02]} d4 {[%emt 0:07:43]} 19. b4 {[%emt 0:04:48]} Qc7 {[%emt 0:01:53]} 20. Na4 {[%emt 0:02:07]} a5 {[%emt 0:02:04]} 21. Nc5 {[%emt 0:01:38]} Bc8 {[%emt 0:01:37]} 22. Qxg3 {[%emt 0:01:54]} Rh5 {[%emt 0:02:36]} 23. Qf3 {[%emt 0:02:43]} Rxc5 {[%emt 0:02:56]} 24. bxc5 {[%emt 0:00:11]} Bxc5 {[%emt 0:00:48]} 25. a4 {[%emt 0:03:11]} Bb4 {[%emt 0:01:12]} 26. g4 {[%emt 0:02:30]} Bd7 {[%emt 0:01:01]} 27. f5 {[%emt 0:00:43]} e5 {[%emt 0:00:50]} 28. g5 {[%emt 0:02:04]} c5 {[%emt 0:03:00]} 29. Bb5 {[%emt 0:00:15]} Bxb5+ {[%emt 0:00:59]} 30. axb5 {[%emt 0:00:05]} c4 {[%emt 0:00:55]} 31. Rbc1 {[%emt 0:06:48]} Rd8 {[%emt 0:03:32]} 32. f6 {[%emt 0:03:22]} g6 {[%emt 0:00:20]} 33. h4 {[%emt 0:01:07]} d3+ {[%emt 0:02:18]} 34. cxd3 {[%emt 0:02:14]} Rxd3 {[%emt 0:00:13]} 35. Qg4 {[%emt 0:02:51]} Qc5 {[%emt 0:00:22]} 36. Rgd1 {[%emt 0:02:47]} Ba3 {[%emt 0:09:12]} 37. Rxc4 {[%emt 0:03:05]} Re3+ {[%emt 0:03:44]} 38. Kf2 {[%emt 0:00:15]} Rxe4+ {[%emt 0:01:09]} 39. Rxc5 {[%emt 0:01:18]} Bxc5+ {[%emt 0:00:09]} 40. Kf3 {[%emt 0:00:00]} Rxg4 {[%emt 0:00:00]} 41. Kxg4 {[%emt 0:00:08]} Bd4 {[%emt 0:00:59]} 42. Rb1 {[%emt 0:02:18]} Kd7 {[%emt 0:01:13]} 43. b6 {[%emt 0:00:06]} Kc8 {[%emt 0:00:05]} 44. b7+ {[%emt 0:01:01]} Kb8 {[%emt 0:00:05]} 45. h5 {[%emt 0:00:04]} gxh5+ {[%emt 0:01:12]} 46. Kxh5 {[%emt 0:00:04]} e4 {[%emt 0:00:48]} 47. g6 {[%emt 0:01:36]} Bxf6 {[%emt 0:00:43]} 48. gxf7 {[%emt 0:00:03]} Be7 {[%emt 0:00:09]} 49. Kg6 {[%emt 0:00:36]} a4 {[%emt 0:01:06]} 50. Kg7 {[%emt 0:00:25]} a3 {[%emt 0:00:30]} 51. f8=Q+ {[%emt 0:00:06]} Bxf8+ {[%emt 0:00:04]} 52. Kxf8 {[%emt 0:00:05]} e3 {[%emt 0:00:12]} 53. Ke7 {[%emt 0:00:16]} a2 {[%emt 0:01:11]} 54. Ra1 {[%emt 0:00:03]} e2 {[%emt 0:00:06]} 55. Kd6 {[%emt 0:00:10]} Kxb7 {[%emt 0:00:09]} 56. Kc5 {[%emt 0:00:05]} Kc7 {[%emt 0:00:23]} 57. Kc4 {[%emt 0:00:15]} Kc6 {[%emt 0:01:40]} 58. Kd3 {[%emt 0:00:20]} 1-0

[Event "WYCC 2018 G16"]
[Site "Halkidiki"]
[Date "2018.10.27"]
[Round "8"]
[White "Shanya Mishra"]
[Black "Hovhannisyan, Mane"]
[Result "1-0"]
[ECO "D11"]
[WhiteElo "1924"]
[BlackElo "1730"]
[Annotator "NA"]
[PlyCount "89"]
[EventDate "2018.10.20"]
[EventType "swiss"]
[EventCountry "GRE"]
[SourceTitle "playchess.com"]
[Source "ChessBase"]
[SourceQuality "1"]
[TimeControl "40/5400+30:1800+30"]

1. d4 {[%emt 0:00:00]} d5 {[%emt 0:00:00]} 2. c4 {[%emt 0:00:24]} c6 {[%emt 0:00:00]} 3. Nf3 {[%emt 0:00:44]} a6 {[%emt 0:00:00]} 4. e3 {[%emt 0:00:57]} Nf6 {[%emt 0:01:01]} 5. Nc3 {[%emt 0:04:08]} Bf5 {[%emt 0:00:08]} 6. Bd2 {[%emt 0:01:51]} e6 {[%emt 0:01:14]} 7. Nh4 Bg6 {[%emt 0:00:05]} 8. Nxg6 {[%emt 0:02:56]} hxg6 {[%emt 0:06:55]} 9. Rc1 Bd6 10. g3 {[%emt 0:06:48]} Nbd7 {[%emt 0:01:34]} 11. cxd5 {[%emt 0:04:33]} exd5 {[%emt 0:09:38]} 12. Bg2 {[%emt 0:03:12]} O-O {[%emt 0:02:42]} 13. O-O {[%emt 0:00:46]} Re8 {[%emt 0:00:07]} 14. Re1 {[%emt 0:05:56]} Ne4 {[%emt 0:04:38]} 15. f3 {[%emt 0:04:53]} Nxd2 {[%emt 0:11:22]} 16. Qxd2 {[%emt 0:02:30]} Qg5 {[%emt 0:05:19]} 17. Qd3 {[%emt 0:07:20]} Rad8 {[%emt 0:03:47]} 18. e4 {[%emt 0:17:03]} Bb4 {[%emt 0:06:27]} 19. e5 {[%emt 0:02:22]} c5 {[%emt 0:01:01]} 20. f4 {[%emt 0:01:42]} Qh5 {[%emt 0:03:43]} 21. Red1 {[%emt 0:03:52]} Nb6 {[%emt 0:12:27]} 22. a3 {[%emt 0:08:45]} c4 {[%emt 0:01:09]} 23. Qc2 {[%emt 0:01:58]} Bxc3 {[%emt 0:00:21]} 24. Qxc3 {[%emt 0:00:10]} Re6 {[%emt 0:03:31]} 25. Qb4 {[%emt 0:00:07]} g5 {[%emt 0:00:58]} 26. f5 {[%emt 0:01:07]} Rh6 {[%emt 0:00:05]} 27. e6 {[%emt 0:05:18]} Nc8 {[%emt 0:00:35]} 28. e7 {[%emt 0:04:16]} Re8 {[%emt 0:00:04]} 29. Re1 {[%emt 0:00:29]} Qxh2+ {[%emt 0:00:37]} 30. Kf2 {[%emt 0:00:05]} Rb6 {[%emt 0:00:53]} 31. Qd2 {[%emt 0:04:01]} Rb3 {[%emt 0:02:15]} 32. Rc3 {[%emt 0:00:53]} Rxc3 {[%emt 0:00:34]} 33. bxc3 {[%emt 0:00:21]} Nd6 {[%emt 0:03:39]} 34. Qxg5 {[%emt 0:03:07]} Ne4+ {[%emt 0:01:51]} 35. Rxe4 {[%emt 0:00:05]} dxe4 {[%emt 0:00:01]} 36. f6 {[%emt 0:00:06]} e3+ {[%emt 0:01:03]} 37. Kxe3 {[%emt 0:01:51]} Qg1+ {[%emt 0:00:06]} 38. Kf3 {[%emt 0:00:06]} Qd1+ {[%emt 0:00:58]} 39. Kf2 {[%emt 0:00:15]} Qc2+ {[%emt 0:00:53]} 40. Kg1 {[%emt 0:00:00]} Qb1+ {[%emt 0:00:00]} 41. Bf1 {[%emt 0:01:59]} Qh7 {[%emt 0:02:17]} 42. Bxc4 {[%emt 0:02:58]} b5 {[%emt 0:01:21]} 43. Bd3 {[%emt 0:00:42]} g6 {[%emt 0:01:44]} 44. d5 {[%emt 0:00:31]} Qh3 {[%emt 0:01:12]} 45. Bxg6 {[%emt 0:00:40]} 1-0

[Event "WYCC 2018 G16"]
[Site "Halkidiki"]
[Date "2018.10.27"]
[Round "8"]
[White "Esadze, Tamari"]
[Black "Akti, Ezgi"]
[Result "1-0"]
[ECO "C95"]
[WhiteElo "1911"]
[BlackElo "1643"]
[Annotator "NA"]
[PlyCount "63"]
[EventDate "2018.10.20"]
[EventType "swiss"]
[EventCountry "GRE"]
[SourceTitle "playchess.com"]
[Source "ChessBase"]
[SourceQuality "1"]
[TimeControl "40/5400+30:1800+30"]

1. e4 {[%emt 0:00:00]} e5 {[%emt 0:00:00]} 2. Nf3 {[%emt 0:00:00]} Nc6 {[%emt 0:00:00]} 3. Bb5 {[%emt 0:00:00]} a6 {[%emt 0:00:00]} 4. Ba4 {[%emt 0:00:00]} Nf6 {[%emt 0:00:00]} 5. O-O {[%emt 0:00:00]} Be7 {[%emt 0:00:00]} 6. Re1 {[%emt 0:00:00]} b5 {[%emt 0:00:27]} 7. Bb3 {[%emt 0:00:00]} O-O {[%emt 0:00:08]} 8. c3 {[%emt 0:00:14]} d6 {[%emt 0:00:36]} 9. h3 {[%emt 0:00:18]} Nb8 {[%emt 0:00:21]} 10. d4 {[%emt 0:00:13]} Nbd7 {[%emt 0:00:05]} 11. Nbd2 {[%emt 0:00:05]} Bb7 {[%emt 0:00:04]} 12. Bc2 {[%emt 0:01:42]} Re8 {[%emt 0:01:19]} 13. Nf1 {[%emt 0:01:06]} Bf8 {[%emt 0:01:17]} 14. Ng3 {[%emt 0:01:09]} g6 {[%emt 0:01:30]} 15. a4 {[%emt 0:06:50]} c6 {[%emt 0:03:13]} 16. Be3 {[%emt 0:07:30]} Bg7 {[%emt 0:37:25]} 17. axb5 {[%emt 0:04:26]} axb5 {[%emt 0:00:24]} 18. Qd2 {[%emt 0:02:13]} d5 {[%emt 0:15:14]} 19. dxe5 {[%emt 0:07:15]} Nxe5 {[%emt 0:00:15]} 20. Nxe5 {[%emt 0:00:44]} Rxe5 {[%emt 0:00:46]} 21. f4 {[%emt 0:20:20]} Re8 {[%emt 0:00:31]} 22. e5 {[%emt 0:00:56]} Nd7 {[%emt 0:00:19]} 23. b4 {[%emt 0:02:24]} f6 {[%emt 0:06:01]} 24. exf6 {[%emt 0:04:03]} Bxf6 {[%emt 0:00:57]} 25. Rxa8 {[%emt 0:04:15]} Qxa8 {[%emt 0:02:46]} 26. Ne4 {[%emt 0:06:29]} dxe4 {[%emt 0:02:41]} 27. Qxd7 {[%emt 0:00:05]} Re7 {[%emt 0:00:16]} 28. Qd6 {[%emt 0:01:59]} Qf8 {[%emt 0:02:33]} 29. Bc5 {[%emt 0:03:46]} Qf7 {[%emt 0:03:52]} 30. Bb3 {[%emt 0:02:58]} Qxb3 {[%emt 0:00:20]} 31. Qxf6 {[%emt 0:00:04]} Re8 {[%emt 0:00:18]} 32. Bd4 {[%emt 0:00:03]} 1-0

[Event "WYCC 2018 G16"]
[Site "Halkidiki"]
[Date "2018.10.27"]
[Round "8"]
[White "Xing, Ashley"]
[Black "Djidjeli, Sarah"]
[Result "1-0"]
[ECO "D96"]
[WhiteElo "1889"]
[BlackElo "1952"]
[Annotator "NA"]
[PlyCount "111"]
[EventDate "2018.10.20"]
[EventType "swiss"]
[EventCountry "GRE"]
[SourceTitle "playchess.com"]
[Source "ChessBase"]
[SourceQuality "1"]
[TimeControl "40/5400+30:1800+30"]

1. d4 {[%emt 0:00:00]} Nf6 {[%emt 0:00:00]} 2. c4 {[%emt 0:00:00]} g6 {[%emt 0:00:00]} 3. Nc3 {[%emt 0:00:00]} d5 {[%emt 0:00:00]} 4. Nf3 {[%emt 0:00:00]} Bg7 {[%emt 0:00:00]} 5. Qb3 {[%emt 0:00:00]} dxc4 {[%emt 0:00:18]} 6. Qxc4 {[%emt 0:00:04]} c6 {[%emt 0:00:09]} 7. e4 {[%emt 0:01:37]} Bg4 {[%emt 0:03:22]} 8. Ne5 {[%emt 0:15:33]} O-O {[%emt 0:02:42]} 9. Nxg4 {[%emt 0:01:21]} Nxg4 {[%emt 0:00:06]} 10. Be2 {[%emt 0:00:56]} Nf6 {[%emt 0:04:11]} 11. O-O {[%emt 0:03:18]} Nbd7 {[%emt 0:01:09]} 12. Be3 {[%emt 0:03:43]} e5 {[%emt 0:03:54]} 13. Rfd1 {[%emt 0:07:53]} exd4 {[%emt 0:01:47]} 14. Bxd4 {[%emt 0:01:50]} Qe7 {[%emt 0:01:38]} 15. f3 {[%emt 0:05:33]} Rfd8 {[%emt 0:04:34]} 16. Rab1 {[%emt 0:04:57]} Ne5 {[%emt 0:18:22]} 17. Qc5 {[%emt 0:03:00]} Qxc5 {[%emt 0:00:34]} 18. Bxc5 {[%emt 0:00:07]} Re8 {[%emt 0:04:03]} 19. b4 {[%emt 0:09:51]} Nh5 {[%emt 0:02:42]} 20. Rb3 {[%emt 0:16:12]} Nf4 {[%emt 0:05:55]} 21. Bf1 {[%emt 0:00:51]} b6 {[%emt 0:05:05]} 22. Be3 {[%emt 0:02:39]} Ne6 {[%emt 0:01:25]} 23. b5 {[%emt 0:05:53]} c5 {[%emt 0:07:58]} 24. Nd5 {[%emt 0:02:00]} Rac8 {[%emt 0:03:00]} 25. Ra3 {[%emt 0:01:08]} Ra8 {[%emt 0:09:34]} 26. Be2 {[%emt 0:03:21]} Red8 {[%emt 0:05:58]} 27. Ne7+ {[%emt 0:02:34]} Kf8 {[%emt 0:00:05]} 28. Rxd8+ {[%emt 0:00:09]} Nxd8 {[%emt 0:00:48]} 29. Nd5 {[%emt 0:00:30]} Nd7 {[%emt 0:00:26]} 30. Nc7 {[%emt 0:01:26]} Rc8 {[%emt 0:00:25]} 31. Rxa7 {[%emt 0:00:22]} Bd4 {[%emt 0:02:28]} 32. Kf2 {[%emt 0:01:42]} Bxe3+ {[%emt 0:01:17]} 33. Kxe3 {[%emt 0:00:08]} Nf6 {[%emt 0:00:02]} 34. Bc4 {[%emt 0:01:39]} Nd7 {[%emt 0:00:51]} 35. f4 {[%emt 0:01:31]} Nf6 {[%emt 0:01:06]} 36. h3 {[%emt 0:00:25]} Ne8 {[%emt 0:02:22]} 37. Nd5 {[%emt 0:02:20]} Rb8 {[%emt 0:00:10]} 38. e5 {[%emt 0:01:14]} Ne6 {[%emt 0:01:24]} 39. Ra6 {[%emt 0:01:24]} N8c7 {[%emt 0:00:50]} 40. Nxc7 {[%emt 0:00:00]} Nxc7 {[%emt 0:00:00]} 41. Ra7 {[%emt 0:00:20]} Rc8 {[%emt 0:02:31]} 42. Rb7 {[%emt 0:01:47]} h6 {[%emt 0:04:00]} 43. Rxb6 {[%emt 0:05:09]} Ra8 {[%emt 0:00:05]} 44. Rf6 {[%emt 0:04:56]} Ra3+ {[%emt 0:01:45]} 45. Kd2 {[%emt 0:04:24]} Nxb5 {[%emt 0:01:22]} 46. Bxb5 {[%emt 0:02:07]} Rxa2+ {[%emt 0:01:03]} 47. Ke1 {[%emt 0:02:21]} Rxg2 {[%emt 0:01:52]} 48. Bc4 {[%emt 0:01:04]} Rg3 {[%emt 0:00:44]} 49. Bxf7 {[%emt 0:00:19]} Ke7 {[%emt 0:00:24]} 50. Bxg6 {[%emt 0:01:24]} Rxh3 {[%emt 0:00:34]} 51. Rf7+ {[%emt 0:02:06]} Kd8 {[%emt 0:00:26]} 52. Rf8+ {[%emt 0:00:37]} Kc7 {[%emt 0:00:36]} 53. Bf5 {[%emt 0:02:06]} Rf3 {[%emt 0:00:53]} 54. Rc8+ {[%emt 0:01:17]} Kb6 {[%emt 0:01:00]} 55. e6 {[%emt 0:00:45]} Rxf4 {[%emt 0:01:16]} 56. e7 {[%emt 0:00:08]} 1-0